fUST/lending_fUST_20250504
["ID","MTS","AMOUNT","RATE_DAILY","PERIOD"]
[359801017,1746353472050,-400.0,0.00038904,15]
[359801018,1746353472059,-2681.15,0.00038904,15]
[359801019,1746353472070,-400.0,0.00038904,8]
[359801020,1746353472080,-400.0,0.00038904,15]
[359801021,1746353472090,-501.14,0.00038904,15]
[359801022,1746353472099,-400.0,0.00038904,15]
[359801023,1746353472109,-400.0,0.00038904,8]
[359801024,1746353472118,-2681.15,0.00038904,15]
[359801025,1746353472128,-400.0,0.00038904,15]
[359801026,1746353472138,-501.14,0.00038904,15]
[359801027,1746353472147,-400.0,0.00038904,15]
[359801028,1746353472158,-2681.15,0.00038904,15]
[359801029,1746353472167,-152.56458568,0.00038904,8]
[359801030,1746353472177,-400.0,0.00038904,15]
[359801031,1746353472186,-391.16984738,0.00038904,15]
[359801032,1746353472195,-501.14,0.00038904,15]
[359801033,1746353472204,-2681.15,0.00038904,15]
[359801034,1746353472214,-400.0,0.00038904,15]
[359801035,1746353472224,-501.14,0.00038904,15]
[359801036,1746353472233,-400.0,0.00038904,15]
[359801037,1746353472243,-1984.07966505,0.00038904,15]
[359801038,1746353472624,-697.07033495,0.00038904,15]
[359801039,1746353472634,-400.0,0.00038904,15]
[359801040,1746353472643,-501.14,0.00038904,15]
[359801041,1746353472654,-116.05963815,0.00038904,15]
[359801042,1746353472776,-283.94036185,0.00038904,15]
[359801043,1746353472786,-400.0,0.00038904,15]
[359801044,1746353472796,-2681.15,0.00038904,15]
[359801045,1746353472805,-400.0,0.00038904,15]
[359801046,1746353472814,-501.14,0.00038904,15]
[359801047,1746353472824,-400.0,0.00038904,15]
[359801048,1746353472833,-400.0,0.00038904,15]
[359801049,1746353472842,-1669.11349786,0.00038904,15]
[359801050,1746353472853,-1012.03650214,0.00038904,15]
[359801051,1746353472863,-400.0,0.00038904,15]
[359801052,1746353472873,-400.0,0.00038904,15]
[359801053,1746353472882,-502.271901,0.00038904,15]
[359801054,1746353472891,-501.14,0.00038904,15]
[359801055,1746353472901,-407.26018087,0.00038904,15]
[359801056,1746353472910,-400.0,0.00038904,15]
[359801057,1746353472919,-2681.15,0.00038904,15]
[359801058,1746353472929,-408.39320807,0.00038904,15]
[359801059,1746353472938,-191.35,0.00038904,15]
[359801060,1746353472948,-501.14,0.00038904,15]
[359801061,1746353472957,-400.0,0.00038904,15]
[359801062,1746353472966,-2681.15,0.00038904,15]
[359801063,1746353472976,-176.26544649,0.00038904,15]
[359801064,1746353472988,-307.32000001,0.00038904,15]
[359801065,1746353473000,-17.5545535,0.00038904,15]
[359801066,1746353473009,-531.19,0.00038904,15]
[359801067,1746353473019,-561.2554465,0.00038904,15]
[359801068,1746353473075,-2119.8945535,0.00038904,15]
[359801069,1746353473084,-400.0,0.00038904,15]
[359801070,1746353473094,-501.14,0.00038904,15]
[359801071,1746353473103,-1848.74138838,0.00038904,15]
[359801072,1746353473116,-832.40861162,0.00038904,15]
[359801073,1746353473125,-400.0,0.00038904,15]
[359801074,1746353473135,-501.14,0.00038904,15]
[359801075,1746353473144,-2681.15,0.00038904,15]
[359801076,1746353473154,-400.0,0.00038904,15]
[359801077,1746353473164,-501.14,0.00038904,15]
[359801078,1746353473173,-2681.15,0.00038904,15]
[359801079,1746353473183,-400.0,0.00038904,15]
[359801080,1746353473192,-417.82708396,0.00038904,15]
[359801081,1746353473201,-501.14,0.00038904,15]
[359801082,1746353473210,-2681.15,0.00038904,15]
[359801083,1746353473220,-501.14,0.00038904,15]
[359801084,1746353473229,-2681.15,0.00038904,15]
[359801085,1746353473238,-501.14,0.00038904,15]
[359801086,1746353473248,-2681.15,0.00038904,15]
[359801087,1746353473257,-501.14,0.00038904,15]
[359801088,1746353473267,-2681.15,0.00038904,15]
[359801089,1746353473276,-501.14,0.00038904,15]
[359801090,1746353473352,-400.0,0.00038904,15]
[359801091,1746353473362,-400.0,0.00038904,15]
[359801092,1746353473372,-501.14,0.00038904,15]
[359801093,1746353473382,-1902.35820428,0.00038904,15]
[359801094,1746353473745,1386.65284872,0.00025205,2]
[359801098,1746353557151,-313.73916419,0.00028,10]
[359801099,1746353557171,-200.10273015,0.00028535,2]
[359801100,1746353557192,-1000.0,0.00028535,2]
[359801101,1746353562091,930.08020178,0.00028535,2]
[359801139,1746354070707,-750.127751,0.00027397,2]
[359801140,1746354070728,-174.0,0.00027397,3]
[359801141,1746354070748,-924.872249,0.00028,3]
[359801143,1746354203107,-178.44431054,0.00024953,2]
[359801144,1746354203128,-486.95982597,0.0002799,2]
[359801145,1746354203148,-500.0,0.00027999,2]
[359801146,1746354203170,-500.0,0.00027999,2]
[359801147,1746354203190,-500.0,0.00027999,2]
[359801148,1746354203218,-500.0,0.00027999,2]
[359801149,1746354203239,-500.0,0.00027999,2]
[359801150,1746354203260,-510.20738279,0.00027999,2]
[359801151,1746354203287,-500.0,0.00027999,2]
[359801152,1746354203308,-500.0,0.00027999,2]
[359801153,1746354203334,-500.0,0.00027999,2]
[359801154,1746354203356,-500.0,0.00027999,2]
[359801155,1746354203377,-500.0,0.00027999,2]
[359801156,1746354203403,-500.0,0.00027999,2]
[359801157,1746354203424,-500.0,0.00027999,2]
[359801158,1746354203445,-159.252847,0.00027999,2]
[359801159,1746354203466,-500.0,0.00027999,2]
[359801160,1746354203492,-500.0,0.00027999,2]
[359801161,1746354203514,-500.0,0.00027999,2]
[359801162,1746354203535,-500.0,0.00027999,2]
[359801163,1746354203561,-500.0,0.00027999,2]
[359801164,1746354203586,-500.0,0.00027999,2]
[359801165,1746354203613,-500.0,0.00027999,2]
[359801166,1746354203635,-500.0,0.00027999,2]
[359801167,1746354203663,-500.0,0.00027999,2]
[359801168,1746354203684,-500.0,0.00027999,2]
[359801169,1746354203711,-500.0,0.00027999,2]
[359801170,1746354203731,-366.43382919,0.00027999,2]
[359801171,1746354203757,-500.0,0.00027999,2]
[359801172,1746354203778,-500.0,0.00027999,2]
[359801173,1746354203804,-500.0,0.00027999,2]
[359801174,1746354203825,-500.0,0.00027999,2]
[359801175,1746354203851,-500.0,0.00027999,2]
[359801176,1746354203890,-500.0,0.00027999,2]
[359801177,1746354203925,-500.0,0.00027999,2]
[359801178,1746354203955,-500.0,0.00027999,2]
[359801179,1746354203988,-500.0,0.00027999,2]
[359801180,1746354204024,-298.65963845,0.00027999,2]
[359801181,1746354204056,-500.0,0.00027999,2]
[359801182,1746354204088,-500.0,0.00027999,2]
[359801183,1746354204121,-500.0,0.00027999,2]
[359801184,1746354204156,-500.0,0.00027999,2]
[359801185,1746354204188,-500.0,0.00027999,2]
[359801186,1746354204221,-500.0,0.00027999,2]
[359801187,1746354204249,-24069.04216606,0.00028,3]
[359801195,1746354347139,-324.47566652,0.0002789,2]
[359801196,1746354347162,-327.67381519,0.00027999,2]
[359801197,1746354354082,-269.55908767,0.00027999,2]
[359801200,1746354443146,-150.0,0.000259,2]
[359801201,1746354443169,-602.76709714,0.00027999,2]
[359801202,1746354443191,-300.0,0.00027999,2]
[359801203,1746354443211,-300.0,0.00027999,2]
[359801204,1746354443232,-2138.09043334,0.00028,3]
[359801205,1746354449087,-3937.7065437,0.00028,3]
[359801206,1746354449107,-1998.08936184,0.00028766,2]
[359801207,1746354449133,-226.65403238,0.00028766,2]
[359801208,1746354451168,-211.94850064,0.00028766,2]
[359801224,1746354528977,-151.0,0.00024,14]
[359801269,1746354632592,-597.78018399,0.00028552,2]
[359801270,1746354632603,-300.0,0.00028765,2]
[359801271,1746354632613,-300.0,0.00028765,2]
[359801272,1746354632622,-300.0,0.00028765,2]
[359801273,1746354632632,-1200.0,0.00028765,2]
[359801274,1746354632642,-13303.00742494,0.00028766,2]
[359801275,1746354632652,-194.157112,0.00028838,2]
[359801276,1746354632662,-567.5195584,0.0002885,2]
[359801277,1746354632671,-250.0,0.00029386,2]
[359801278,1746354632682,-1014.28468074,0.0003,2]
[359801279,1746354632691,-228.262021,0.00030335,2]
[359801280,1746354632702,-190.0,0.00030371,2]
[359801281,1746354632720,-691.8708786,0.00030646,2]
[359801282,1746354632733,-301.86004978,0.0003099,2]
[359801283,1746354632743,-404.25604751,0.00031234,2]
[359801285,1746354632753,-198.13690806,0.00031234,2]
[359801287,1746354632763,-255.40662649,0.00031333,2]
[359801289,1746354632773,-239.916983,0.00031333,2]
[359801291,1746354632782,-500.0,0.00031333,2]
[359801293,1746354632792,-500.0,0.00031333,2]
[359801294,1746354632802,-50000.0,0.00031334,2]
[359801295,1746354632812,-218.434627,0.00031334,2]
[359801296,1746354632821,-229.07764317,0.00031334,2]
[359801297,1746354632832,-531.29049676,0.00031334,2]
[359801298,1746354632842,-11932.1879139,0.00031335,2]
[359801299,1746354632851,-190.77778536,0.00031454,2]
[359801300,1746354632862,-675.5,0.00031554,30]
[359801301,1746354632873,-185.406427,0.00032008,120]
[359801302,1746354632883,-160.0,0.0003202,2]
[359801303,1746354632893,-164.43344948,0.0003202,2]
[359801304,1746354632902,-160.0,0.0003202,2]
[359801305,1746354632913,-160.0,0.0003202,2]
[359801306,1746354632922,-160.0,0.00032129,2]
[359801307,1746354632932,-182.19332975,0.00032129,2]
[359801308,1746354632942,-160.0,0.00032129,2]
[359801309,1746354632951,-160.0,0.00032129,2]
[359801310,1746354632961,-404.25604749,0.00032399,2]
[359801311,1746354632970,-216.298747,0.00032914,2]
[359801312,1746354632980,-750.127751,0.00033165,2]
[359801313,1746354632990,-404.25604749,0.00033564,2]
[359801314,1746354633000,-404.25604749,0.00034729,2]
[359801315,1746354633010,-150.84754762,0.00035,60]
[359801316,1746354633020,-198.13690805,0.00035019,2]
[359801317,1746354633031,-2244.0,0.00035396,2]
[359801318,1746354633040,-707.0,0.00035396,2]
[359801319,1746354633050,-403.0,0.00035396,2]
[359801320,1746354633060,-545.0,0.00035396,2]
[359801321,1746354633070,-500.0,0.00035605,60]
[359801322,1746354633079,-404.25604749,0.00035894,2]
[359801323,1746354633089,-167.90620497,0.000362,120]
[359801324,1746354633099,-167.90620495,0.000362,120]
[359801325,1746354633110,-167.90620495,0.000362,120]
[359801326,1746354633120,-500.0,0.00036701,60]
[359801327,1746354633130,-404.25604749,0.00037059,2]
[359801328,1746354633140,-387.08,0.000371,2]
[359801329,1746354633150,-645.6150292,0.0003729,4]
[359801330,1746354633161,-500.0,0.00037797,60]
[359801331,1746354633170,-404.25604749,0.00038224,2]
[359801332,1746354633180,-403.0,0.00038396,2]
[359801333,1746354633190,-181.01796017,0.000388,2]
[359801334,1746354633200,-181.01796016,0.00038801,2]
[359801335,1746354633211,-181.01796016,0.00038803,2]
[359801336,1746354633221,-218.82725537,0.00038804,17]
[359801337,1746354633230,-181.01796016,0.00038804,2]
[359801338,1746354633240,-198.13690805,0.00038804,2]
[359801339,1746354633250,-500.0,0.00038893,60]
[359801340,1746354633260,-49274.1164015,0.00038894,3]
[359801341,1746354633270,-160.0,0.000389,58]
[359801342,1746354633280,-400.0,0.00038904,15]
[359801343,1746354633290,-400.0,0.00038904,15]
[359801344,1746354633299,-400.0,0.00038904,15]
[359801345,1746354633309,-507.79657515,0.00038904,15]
[359801346,1746354633319,-400.0,0.00038904,15]
[359801347,1746354633328,-400.0,0.00038904,15]
[359801348,1746354633338,-151.0,0.00038904,14]
[359801349,1746354633351,-152.749136,0.00038904,14]
[359801350,1746354633361,-400.0,0.00038904,15]
[359801351,1746354633370,-400.0,0.00038904,15]
[359801352,1746354633379,-400.0,0.00038904,15]
[359801353,1746354633389,-400.0,0.00038904,15]
[359801354,1746354633399,-400.0,0.00038904,15]
[359801355,1746354633409,-404.04636046,0.00038904,15]
[359801356,1746354633419,-400.0,0.00038904,15]
[359801357,1746354633442,-400.0,0.00038904,15]
[359801358,1746354633451,-400.0,0.00038904,15]
[359801359,1746354633461,-186.41606628,0.00038904,15]
[359801360,1746354633471,-400.0,0.00038904,15]
[359801361,1746354633482,-400.0,0.00038904,15]
[359801362,1746354633491,-302.94715837,0.00038904,15]
[359801363,1746354633501,-400.0,0.00038904,15]
[359801364,1746354633513,-400.0,0.00038904,15]
[359801365,1746354633523,-400.0,0.00038904,15]
[359801366,1746354633533,-400.0,0.00038904,15]
[359801367,1746354633542,-400.0,0.00038904,15]
[359801368,1746354633552,-194.39432838,0.00038904,15]
[359801369,1746354633561,-400.0,0.00038904,15]
[359801370,1746354633571,-400.0,0.00038904,15]
[359801371,1746354633581,-400.0,0.00038904,15]
[359801372,1746354633591,-419.26067191,0.00038904,15]
[359801373,1746354633601,-400.0,0.00038904,15]
[359801374,1746354633610,-400.0,0.00038904,15]
[359801375,1746354633620,-400.0,0.00038904,15]
[359801376,1746354633630,-400.0,0.00038904,15]
[359801377,1746354633640,-400.0,0.00038904,15]
[359801378,1746354633650,-400.0,0.00038904,15]
[359801379,1746354633660,-400.0,0.00038904,15]
[359801380,1746354633669,-400.0,0.00038904,15]
[359801381,1746354633679,-400.0,0.00038904,15]
[359801382,1746354633689,-500.0,0.00038904,15]
[359801383,1746354633698,-400.0,0.00038904,15]
[359801384,1746354633708,-400.0,0.00038904,15]
[359801385,1746354633718,-400.0,0.00038904,15]
[359801386,1746354633727,-400.0,0.00038904,15]
[359801387,1746354633737,-400.0,0.00038904,15]
[359801388,1746354633898,-400.0,0.00038904,15]
[359801389,1746354633908,-400.0,0.00038904,15]
[359801390,1746354633918,-400.0,0.00038904,15]
[359801391,1746354633927,-400.0,0.00038904,15]
[359801392,1746354633937,-400.0,0.00038904,15]
[359801393,1746354633947,-400.0,0.00038904,15]
[359801394,1746354633957,-400.0,0.00038904,15]
[359801395,1746354633966,-1000.0,0.00038904,15]
[359801396,1746354633976,-1000.0,0.00038904,15]
[359801397,1746354633985,-478.06835261,0.00038904,15]
[359801398,1746354633995,-400.0,0.00038904,15]
[359801399,1746354634005,-400.0,0.00038904,15]
[359801400,1746354634015,-400.0,0.00038904,15]
[359801401,1746354634025,-400.0,0.00038904,15]
[359801402,1746354634034,-400.0,0.00038904,15]
[359801403,1746354634044,-400.0,0.00038904,15]
[359801404,1746354634054,-360.86,0.00038904,15]
[359801405,1746354634063,-400.0,0.00038904,15]
[359801406,1746354634073,-400.0,0.00038904,15]
[359801407,1746354634082,-317.58056408,0.00038904,15]
[359801408,1746354634092,-400.0,0.00038904,15]
[359801409,1746354634102,-400.0,0.00038904,15]
[359801410,1746354634111,-303.75792205,0.00038904,15]
[359801411,1746354634121,-372.32259553,0.00038904,15]
[359801412,1746354634130,-400.0,0.00038904,15]
[359801413,1746354634140,-400.0,0.00038904,15]
[359801414,1746354634149,-400.0,0.00038904,15]
[359801415,1746354634158,-400.0,0.00038904,15]
[359801416,1746354634167,-400.0,0.00038904,15]
[359801417,1746354634176,-400.0,0.00038904,15]
[359801418,1746354634185,-546.71,0.00038904,15]
[359801419,1746354634194,-400.0,0.00038904,15]
[359801420,1746354634203,-400.0,0.00038904,15]
[359801421,1746354634213,-400.0,0.00038904,15]
[359801422,1746354634222,-400.0,0.00038904,15]
[359801423,1746354634231,-415.82777528,0.00038904,15]
[359801424,1746354634240,-400.0,0.00038904,15]
[359801425,1746354634250,-338.54187457,0.00038904,15]
[359801426,1746354634259,-412.76,0.00038904,15]
[359801427,1746354634268,-400.0,0.00038904,15]
[359801428,1746354634277,-400.0,0.00038904,15]
[359801429,1746354634287,-400.0,0.00038904,15]
[359801430,1746354634296,-400.0,0.00038904,15]
[359801431,1746354634306,-400.0,0.00038904,15]
[359801432,1746354634315,-400.0,0.00038904,15]
[359801433,1746354634325,-422.44380983,0.00038904,15]
[359801434,1746354634335,-400.0,0.00038904,15]
[359801435,1746354634345,-400.0,0.00038904,15]
[359801436,1746354634354,-400.0,0.00038904,15]
[359801437,1746354634364,-400.0,0.00038904,15]
[359801438,1746354634373,-180.83343596,0.00038904,15]
[359801439,1746354634383,-400.0,0.00038904,15]
[359801440,1746354634393,-400.0,0.00038904,15]
[359801441,1746354634402,-400.0,0.00038904,15]
[359801442,1746354634412,-412.39,0.00038904,15]
[359801443,1746354634421,-400.0,0.00038904,15]
[359801444,1746354634431,-400.0,0.00038904,7]
[359801445,1746354634444,-400.0,0.00038904,7]
[359801446,1746354634454,-400.0,0.00038904,15]
[359801447,1746354634463,-400.0,0.00038904,15]
[359801448,1746354634473,-400.0,0.00038904,15]
[359801449,1746354634483,-460.48,0.00038904,15]
[359801450,1746354634492,-201.82407043,0.00038904,15]
[359801451,1746354634501,-429.01,0.00038904,15]
[359801452,1746354634511,-400.0,0.00038904,15]
[359801453,1746354634520,-400.0,0.00038904,15]
[359801454,1746354634530,-400.0,0.00038904,15]
[359801455,1746354634539,-400.0,0.00038904,15]
[359801456,1746354634548,-340.52079691,0.00038904,15]
[359801457,1746354634558,-400.0,0.00038904,15]
[359801458,1746354634567,-400.0,0.00038904,15]
[359801459,1746354634577,-400.0,0.00038904,15]
[359801460,1746354634586,-453.67,0.00038904,15]
[359801461,1746354634596,-453.67,0.00038904,15]
[359801462,1746354634605,-453.67,0.00038904,15]
[359801463,1746354634615,-453.67,0.00038904,15]
[359801464,1746354634624,-400.0,0.00038904,15]
[359801465,1746354634634,-453.67,0.00038904,15]
[359801466,1746354634643,-453.67,0.00038904,15]
[359801467,1746354634652,-453.67,0.00038904,15]
[359801468,1746354634671,-453.67,0.00038904,15]
[359801469,1746354634682,-453.67,0.00038904,15]
[359801470,1746354634691,-453.67,0.00038904,15]
[359801471,1746354634701,-453.67,0.00038904,15]
[359801472,1746354634711,-453.67,0.00038904,15]
[359801473,1746354634721,-453.67,0.00038904,15]
[359801474,1746354634732,-453.67,0.00038904,15]
[359801475,1746354634741,-453.67,0.00038904,15]
[359801476,1746354634751,-453.67,0.00038904,15]
[359801477,1746354634761,-453.67,0.00038904,15]
[359801478,1746354634770,-400.0,0.00038904,15]
[359801479,1746354634781,-453.67,0.00038904,15]
[359801480,1746354634791,-453.67,0.00038904,15]
[359801481,1746354634801,-453.67,0.00038904,15]
[359801482,1746354634811,-453.67,0.00038904,15]
[359801483,1746354634821,-400.0,0.00038904,15]
[359801484,1746354634831,-453.67,0.00038904,15]
[359801485,1746354634841,-453.67,0.00038904,15]
[359801486,1746354634851,-453.76,0.00038904,15]
[359801487,1746354634862,-400.0,0.00038904,15]
[359801488,1746354634872,-400.0,0.00038904,15]
[359801489,1746354634883,-400.0,0.00038904,15]
[359801490,1746354634895,-400.0,0.00038904,15]
[359801491,1746354634906,-290.14,0.00038904,15]
[359801492,1746354634916,-360.24120704,0.00038904,15]
[359801493,1746354634947,-39.75879296,0.00038904,15]
[359801494,1746354634958,-400.0,0.00038904,15]
[359801495,1746354634968,-400.0,0.00038904,15]
[359801496,1746354634978,-400.0,0.00038904,15]
[359801497,1746354634987,-400.0,0.00038904,15]
[359801498,1746354634997,-400.0,0.00038904,15]
[359801499,1746354635007,-400.0,0.00038904,15]
[359801500,1746354635016,-400.0,0.00038904,15]
[359801501,1746354635026,-400.0,0.00038904,15]
[359801502,1746354635035,-400.0,0.00038904,15]
[359801503,1746354635045,-400.0,0.00038904,15]
[359801504,1746354635054,-400.0,0.00038904,15]
[359801505,1746354635064,-400.0,0.00038904,15]
[359801506,1746354635074,-400.0,0.00038904,15]
[359801507,1746354635084,-400.0,0.00038904,15]
[359801508,1746354635096,-400.0,0.00038904,15]
[359801509,1746354635105,-400.0,0.00038904,15]
[359801510,1746354635116,-348.20782882,0.00038904,15]
[359801511,1746354635126,-400.0,0.00038904,15]
[359801512,1746354635136,-498.6723745,0.00038904,15]
[359801513,1746354635145,-400.0,0.00038904,15]
[359801514,1746354635154,-400.0,0.00038904,15]
[359801515,1746354635164,-400.0,0.00038904,15]
[359801516,1746354635173,-400.0,0.00038904,15]
[359801517,1746354635183,-400.71558451,0.00038904,15]
[359801518,1746354635193,-400.0,0.00038904,15]
[359801519,1746354635202,-400.0,0.00038904,15]
[359801520,1746354635211,-481.8461734,0.00038904,15]
[359801521,1746354635221,-416.55687346,0.00038904,15]
[359801522,1746354635234,-400.0,0.00038904,15]
[359801523,1746354635243,-400.0,0.00038904,15]
[359801524,1746354635252,-543.88,0.00038904,15]
[359801525,1746354635261,-400.0,0.00038904,15]
[359801526,1746354635270,-400.0,0.00038904,15]
[359801527,1746354635280,-400.0,0.00038904,15]
[359801528,1746354635289,-231.51680949,0.00038904,15]
[359801529,1746354635299,-176.57674597,0.00038904,15]
[359801530,1746354635308,-403.14043117,0.00038904,15]
[359801531,1746354635317,-400.0,0.00038904,15]
[359801532,1746354635327,-400.0,0.00038904,15]
[359801533,1746354635336,-70.35632433,0.00038904,15]
[359801534,1746354635352,-329.64367567,0.00038904,15]
[359801535,1746354635362,-400.0,0.00038904,15]
[359801536,1746354635371,-400.0,0.00038904,15]
[359801537,1746354635380,-400.0,0.00038904,15]
[359801538,1746354635390,-495.25,0.00038904,15]
[359801539,1746354635399,-400.0,0.00038904,15]
[359801540,1746354635409,-400.0,0.00038904,15]
[359801541,1746354635418,-417.2572742,0.00038904,15]
[359801542,1746354635436,-121.04960285,0.00038904,15]
[359801543,1746354635451,-278.95039715,0.00038904,15]
[359801544,1746354635461,-103.54960285,0.00038904,15]
[359801545,1746354635473,-296.45039715,0.00038904,15]
[359801546,1746354635483,-400.0,0.00038904,15]
[359801547,1746354635492,-387.23,0.00038904,15]
[359801548,1746354635501,-400.0,0.00038904,15]
[359801549,1746354635512,-400.0,0.00038904,15]
[359801550,1746354635522,-400.0,0.00038904,15]
[359801551,1746354635531,-400.0,0.00038904,15]
[359801552,1746354635541,-400.0,0.00038904,15]
[359801553,1746354635551,-385.62,0.00038904,15]
[359801554,1746354635560,-400.0,0.00038904,15]
[359801555,1746354635570,-400.0,0.00038904,15]
[359801556,1746354635579,-196.7,0.00038904,15]
[359801557,1746354635589,-400.0,0.00038904,15]
[359801558,1746354635599,-400.0,0.00038904,15]
[359801559,1746354635609,-400.0,0.00038904,15]
[359801560,1746354635618,-340.28101671,0.00038904,15]
[359801561,1746354635627,-400.0,0.00038904,15]
[359801562,1746354635637,-450.48179807,0.00038904,15]
[359801563,1746354635647,-400.0,0.00038904,15]
[359801564,1746354635657,-400.0,0.00038904,15]
[359801565,1746354635666,-400.0,0.00038904,15]
[359801566,1746354635676,-400.0,0.00038904,15]
[359801567,1746354635686,-400.0,0.00038904,15]
[359801568,1746354635696,-203.12110541,0.00038904,15]
[359801569,1746354635705,-400.0,0.00038904,15]
[359801570,1746354635715,-309.79,0.00038904,15]
[359801571,1746354635725,-202.50533905,0.00038904,15]
[359801572,1746354635735,-400.0,0.00038904,15]
[359801573,1746354635745,-400.0,0.00038904,15]
[359801574,1746354635754,-400.0,0.00038904,15]
[359801575,1746354635763,-400.0,0.00038904,15]
[359801576,1746354635773,-400.0,0.00038904,15]
[359801577,1746354635782,-400.0,0.00038904,15]
[359801578,1746354635792,-400.0,0.00038904,15]
[359801579,1746354635802,-400.0,0.00038904,15]
[359801580,1746354635812,-503.41,0.00038904,15]
[359801581,1746354635822,-400.0,0.00038904,15]
[359801582,1746354635832,-400.0,0.00038904,15]
[359801583,1746354635843,-500.0,0.00038904,15]
[359801584,1746354635853,-400.0,0.00038904,15]
[359801585,1746354635862,-400.0,0.00038904,15]
[359801586,1746354635872,-400.0,0.00038904,15]
[359801587,1746354635881,-400.0,0.00038904,15]
[359801588,1746354635890,-400.0,0.00038904,15]
[359801589,1746354635900,-400.0,0.00038904,15]
[359801590,1746354635911,-365.96,0.00038904,15]
[359801591,1746354635921,-400.0,0.00038904,15]
[359801592,1746354635930,-400.0,0.00038904,15]
[359801593,1746354635940,-490.54,0.00038904,15]
[359801594,1746354635949,-500.33781366,0.00038904,15]
[359801595,1746354635958,-400.0,0.00038904,15]
[359801596,1746354635967,-400.0,0.00038904,15]
[359801597,1746354635977,-400.0,0.00038904,15]
[359801598,1746354635986,-400.0,0.00038904,15]
[359801599,1746354635996,-500.88804947,0.00038904,15]
[359801600,1746354636005,-400.0,0.00038904,15]
[359801601,1746354636014,-400.0,0.00038904,15]
[359801602,1746354636024,-400.0,0.00038904,15]
[359801603,1746354636033,-400.0,0.00038904,15]
[359801604,1746354636042,-298.62,0.00038904,15]
[359801605,1746354636051,-400.0,0.00038904,15]
[359801606,1746354636061,-400.0,0.00038904,15]
[359801607,1746354636071,-501.11559276,0.00038904,15]
[359801608,1746354636080,-400.0,0.00038904,15]
[359801609,1746354636090,-400.0,0.00038904,15]
[359801610,1746354636099,-400.0,0.00038904,15]
[359801611,1746354636109,-478.17,0.00038904,15]
[359801612,1746354636118,-330.04,0.00038904,15]
[359801613,1746354636128,-400.0,0.00038904,15]
[359801614,1746354636137,-400.0,0.00038904,15]
[359801615,1746354636146,-400.0,0.00038904,15]
[359801616,1746354636156,-400.0,0.00038904,15]
[359801617,1746354636165,-400.0,0.00038904,15]
[359801618,1746354636174,-285.53194096,0.00038904,15]
[359801619,1746354636183,-367.39348328,0.00038904,5]
[359801620,1746354636192,-400.0,0.00038904,15]
[359801621,1746354636202,-411.65,0.00038904,15]
[359801622,1746354636211,-500.0,0.00038904,15]
[359801623,1746354636220,-400.0,0.00038904,15]
[359801624,1746354636229,-540.6,0.00038904,15]
[359801625,1746354636238,-351.89463732,0.00038904,15]
[359801626,1746354636248,-400.0,0.00038904,15]
[359801627,1746354636257,-400.0,0.00038904,15]
[359801628,1746354636267,-400.0,0.00038904,15]
[359801629,1746354636276,-400.0,0.00038904,15]
[359801630,1746354636286,-400.0,0.00038904,15]